fUSD/lending_fUSD_20260422
["ID","MTS","AMOUNT","RATE_DAILY","PERIOD"]
[420950846,1776787591184,213.13,8.204e-05,2]
[420950847,1776787619778,13005.4863,8.145e-05,2]
[420950848,1776787632374,-4823.25,8.22e-05,2]
[420950849,1776787632581,-353.51,8.22e-05,2]
[420950894,1776787756498,9292.99,8.144e-05,2]
[420950895,1776787756531,10000.01,8.144e-05,2]
[420950896,1776787756557,10000.01,8.144e-05,2]
[420950897,1776787756584,10000.01,8.144e-05,2]
[420950898,1776787756610,10000.01,8.144e-05,2]
[420950899,1776787756636,10000.01,8.144e-05,2]
[420950900,1776787756661,10000.01,8.144e-05,2]
[420950901,1776787756687,10000.01,8.144e-05,2]
[420950902,1776787756713,10000.01,8.144e-05,2]
[420950903,1776787756737,10000.01,8.144e-05,2]
[420950904,1776787756764,37855.78787617,8.144e-05,2]
[420950905,1776787756799,978428.75107526,8.144e-05,2]
[420950906,1776787768159,-5599.982052,8.144e-05,2]
[420950907,1776787777305,-7725.69649081,8.144e-05,2]
[420950908,1776787777321,-10000.01,8.144e-05,2]
[420950909,1776787777356,-10000.01,8.144e-05,2]
[420950910,1776787777478,-10000.01,8.144e-05,2]
[420950911,1776787777601,-10000.01,8.144e-05,2]
[420950912,1776787777746,-10000.01,8.144e-05,2]
[420950913,1776787777883,-10000.01,8.144e-05,2]
[420950914,1776787778021,-10000.01,8.144e-05,2]
[420950915,1776787780101,-10000.01,8.144e-05,2]
[420950916,1776787785979,-10000.01,8.144e-05,2]
[420950917,1776787786103,-10000.01,8.144e-05,2]
[420950918,1776787786255,-10000.01,8.144e-05,2]
[420950919,1776787786351,-10000.01,8.144e-05,2]
[420950920,1776787790191,-10000.01,8.144e-05,2]
[420950921,1776787790205,-10000.01,8.144e-05,2]
[420950922,1776787790226,-10000.01,8.144e-05,2]
[420950923,1776787790241,-10000.01,8.144e-05,2]
[420950924,1776787792029,-10000.01,8.144e-05,2]
[420950925,1776787795098,-10000.01,8.144e-05,2]
[420950926,1776787795217,-10000.01,8.144e-05,2]
[420950927,1776787795342,-10000.01,8.144e-05,2]
[420950928,1776787795465,-10000.01,8.144e-05,2]
[420950929,1776787798267,-10000.01,8.144e-05,2]
[420950930,1776787802257,-10000.01,8.144e-05,2]
[420950931,1776787802273,-10000.01,8.144e-05,2]
[420950932,1776787802289,-10000.01,8.144e-05,2]
[420950933,1776787802304,-10000.01,8.144e-05,2]
[420950934,1776787804279,-10000.01,8.144e-05,2]
[420950935,1776787807379,-10000.01,8.144e-05,2]
[420950936,1776787807597,-10000.01,8.144e-05,2]
[420950937,1776787807752,-10000.01,8.144e-05,2]
[420950938,1776787807883,-10000.01,8.144e-05,2]
[420950939,1776787814097,-10000.01,7.945e-05,2]
[420950940,1776787814121,-153.729396,7.945e-05,2]
[420950941,1776787814134,-1799.09000576,8.144e-05,2]
[420950942,1776787814145,-256.0,8.144e-05,2]
[420950943,1776787814155,-777.0,8.144e-05,2]
[420950944,1776787814165,-160.0,8.144e-05,3]
[420950945,1776787814177,-153.0,8.144e-05,3]
[420950946,1776787814187,-607.489,8.145e-05,2]
[420950947,1776787814197,-6093.70159824,8.178e-05,2]
[420950948,1776787814214,-2185.97243376,8.178e-05,2]
[420950949,1776787828185,1900.90827,7.742e-05,2]
[420950950,1776787828454,1900.90827,7.742e-05,2]
[420950951,1776787828725,1900.90827,7.742e-05,2]
[420950952,1776787828971,1900.90827,7.742e-05,2]
[420950953,1776787829254,1900.9083,7.742e-05,2]
[420950960,1776787831943,-843.54486128,8.144e-05,2]
[420950961,1776787831996,-305234.26434873,8.144e-05,2]
[420950962,1776787832006,-500.0,8.232e-05,2]
[420950963,1776787832016,-500.0,8.232e-05,2]
[420950964,1776787832026,-500.0,8.232e-05,2]
[420950965,1776787832036,-226.39968953,8.232e-05,2]
[420950966,1776787832045,-500.0,8.244e-05,2]
[420950967,1776787832055,-598.47612488,8.244e-05,2]
[420950968,1776787832065,-189.11901692,8.244e-05,2]
[420950969,1776787832075,-176.32444388,8.244e-05,2]
[420950970,1776787832085,-572.16722032,8.244e-05,2]
[420950971,1776787832094,-181.84680563,8.244e-05,2]
[420950972,1776787832105,-500.0,8.244e-05,2]
[420950973,1776787832115,-617.6202307,8.244e-05,2]
[420950974,1776787832125,-617.6202307,8.244e-05,2]
[420950975,1776787832135,-617.6202307,8.244e-05,2]
[420950976,1776787832145,-617.6202307,8.244e-05,2]
[420950977,1776787832155,-617.6202307,8.244e-05,2]
[420950978,1776787832164,-617.6202307,8.244e-05,2]
[420950979,1776787832174,-617.6202307,8.244e-05,2]
[420950980,1776787832184,-617.6202307,8.244e-05,2]
[420950981,1776787832194,-617.6202307,8.244e-05,2]
[420950982,1776787832204,-617.6202307,8.244e-05,2]
[420950983,1776787832213,-617.6202307,8.244e-05,2]
[420950984,1776787832223,-617.6202307,8.244e-05,2]
[420950985,1776787832233,-617.6202307,8.244e-05,2]
[420950986,1776787832243,-617.6202307,8.244e-05,2]
[420950987,1776787832253,-617.6202307,8.244e-05,2]
[420950988,1776787832264,-617.6202307,8.244e-05,2]
[420950989,1776787832274,-617.6202307,8.244e-05,2]
[420950990,1776787832284,-617.6202307,8.244e-05,2]
[420950991,1776787832294,-617.6202307,8.244e-05,2]
[420950992,1776787832304,-617.6202307,8.244e-05,2]
[420950993,1776787832314,-617.6202307,8.244e-05,2]
[420950994,1776787832324,-617.6202307,8.244e-05,2]
[420950995,1776787832333,-617.6202307,8.244e-05,2]
[420950996,1776787832343,-617.6202307,8.244e-05,2]
[420950997,1776787832352,-617.6202307,8.244e-05,2]
[420950998,1776787832362,-617.6202307,8.244e-05,2]
[420950999,1776787832372,-617.6202307,8.244e-05,2]
[420951001,1776787832382,-617.6202307,8.244e-05,2]
[420951002,1776787832392,-617.6202307,8.244e-05,2]
[420951005,1776787832407,-617.6202307,8.244e-05,2]
[420951007,1776787832418,-617.6202307,8.244e-05,2]
[420951009,1776787832428,-617.6202307,8.244e-05,2]
[420951011,1776787832439,-617.6202307,8.244e-05,2]
[420951013,1776787832450,-617.6202307,8.244e-05,2]
[420951015,1776787832460,-617.6202307,8.244e-05,2]
[420951017,1776787832470,-617.6202307,8.244e-05,2]
[420951019,1776787832481,-617.6202307,8.244e-05,2]
[420951021,1776787832494,-617.6202307,8.244e-05,2]
[420951023,1776787832505,-617.6202307,8.244e-05,2]
[420951025,1776787832517,-617.6202307,8.244e-05,2]
[420951027,1776787832527,-617.6202307,8.244e-05,2]
[420951029,1776787832537,-617.6202307,8.244e-05,2]
[420951031,1776787832547,-617.6202307,8.244e-05,2]
[420951034,1776787832556,-617.6202307,8.244e-05,2]
[420951036,1776787832566,-617.6202307,8.244e-05,2]
[420951038,1776787832576,-617.6202307,8.244e-05,2]
[420951040,1776787832585,-617.6202307,8.244e-05,2]
[420951042,1776787832595,-617.6202307,8.244e-05,2]
[420951044,1776787832606,-610.08827667,8.244e-05,2]
[420951045,1776787832615,-610.08827667,8.244e-05,2]
[420951046,1776787832625,-610.08827667,8.244e-05,2]
[420951047,1776787832635,-610.08827667,8.244e-05,2]
[420951048,1776787832645,-610.08827667,8.244e-05,2]
[420951049,1776787832654,-610.08827667,8.244e-05,2]
[420951050,1776787832664,-610.08827667,8.244e-05,2]
[420951051,1776787832673,-610.08827667,8.244e-05,2]
[420951052,1776787832683,-610.08827667,8.244e-05,2]
[420951053,1776787832693,-610.08827667,8.244e-05,2]
[420951054,1776787832702,-610.08827667,8.244e-05,2]
[420951055,1776787832712,-610.08827667,8.244e-05,2]
[420951056,1776787832721,-610.08827667,8.244e-05,2]
[420951057,1776787832731,-610.08827667,8.244e-05,2]
[420951058,1776787832740,-610.08827667,8.244e-05,2]
[420951059,1776787832750,-610.08827667,8.244e-05,2]
[420951060,1776787832759,-610.08827667,8.244e-05,2]
[420951061,1776787832769,-610.08827667,8.244e-05,2]
[420951062,1776787832779,-610.08827667,8.244e-05,2]
[420951063,1776787832788,-610.08827667,8.244e-05,2]
[420951064,1776787832798,-610.08827667,8.244e-05,2]
[420951065,1776787832811,-610.08827667,8.244e-05,2]
[420951066,1776787832820,-610.08827667,8.244e-05,2]
[420951067,1776787832830,-610.08827667,8.244e-05,2]
[420951068,1776787832839,-610.08827667,8.244e-05,2]
[420951069,1776787832848,-610.08827667,8.244e-05,2]
[420951070,1776787832858,-610.08827667,8.244e-05,2]
[420951071,1776787832867,-610.08827667,8.244e-05,2]
[420951072,1776787832877,-610.08827667,8.244e-05,2]
[420951073,1776787832887,-610.08827667,8.244e-05,2]
[420951074,1776787832896,-610.08827667,8.244e-05,2]
[420951075,1776787832905,-612.86140519,8.244e-05,2]
[420951076,1776787832915,-612.86140519,8.244e-05,2]
[420951077,1776787832925,-612.86140519,8.244e-05,2]
[420951078,1776787832935,-612.86140519,8.244e-05,2]
[420951079,1776787832944,-612.86140519,8.244e-05,2]
[420951080,1776787832954,-612.86140519,8.244e-05,2]
[420951081,1776787832963,-612.86140519,8.244e-05,2]
[420951082,1776787832973,-612.86140519,8.244e-05,2]
[420951083,1776787832982,-612.86140519,8.244e-05,2]
[420951084,1776787832992,-612.86140519,8.244e-05,2]
[420951085,1776787833001,-612.86140519,8.244e-05,2]
[420951086,1776787833011,-150.0,8.244e-05,2]
[420951087,1776787833020,-1048.39640506,8.244e-05,2]
[420951088,1776787833030,-500.0,8.31e-05,2]
[420951089,1776787833039,-500.0,8.31e-05,2]
[420951090,1776787833048,-500.0,8.31e-05,2]
[420951091,1776787833058,-500.0,8.31e-05,2]
[420951092,1776787833068,-506.35109511,8.31e-05,2]
[420951093,1776787833077,-12180.8210277,8.353e-05,2]
[420951094,1776787833087,-11838.99223,8.353e-05,2]
[420951095,1776787833096,-2014.3928549,8.353e-05,2]
[420951096,1776787833106,-500.0,8.518e-05,2]
[420951097,1776787833115,-9042.67750769,8.769e-05,2]
[420951098,1776787833125,-502.74187909,8.792e-05,2]
[420951099,1776787833134,-1000.0,8.858e-05,2]
[420951100,1776787833143,-3277.96,8.882e-05,2]
[420951101,1776787833153,-1299.59,8.911e-05,2]
[420951102,1776787833163,-1852.42,8.941e-05,2]
[420951103,1776787833173,-300.0,8.958e-05,2]
[420951104,1776787833182,-259.88460929,8.958e-05,2]
[420951105,1776787833192,-3137.87,8.97e-05,2]
[420951106,1776787833202,-9483.13,9.003e-05,2]
[420951107,1776787833216,-200.0,9.018e-05,2]
[420951108,1776787833225,-2157.31,9.02e-05,2]
[420951109,1776787833235,-250.0,9.054e-05,2]
[420951110,1776787833244,-2232.80997893,9.054e-05,2]
[420951111,1776787833254,-250.0,9.054e-05,2]
[420951112,1776787833264,-255.0,9.068e-05,2]
[420951113,1776787833273,-3042.01,9.1e-05,2]
[420951114,1776787833283,-12747.03,9.121e-05,2]
[420951115,1776787833293,-2587.06,9.123e-05,2]
[420951116,1776787833302,-653.90705812,9.174e-05,2]
[420951117,1776787833312,-500.0,9.178e-05,2]
[420951118,1776787833321,-9311.63,9.192e-05,2]
[420951119,1776787833331,-389.44,9.217e-05,2]
[420951120,1776787833340,-151.76,9.246e-05,2]
[420951121,1776787833350,-323.18330102,9.406e-05,2]
[420951122,1776787833360,-2717.9085466,9.412e-05,2]
[420951123,1776787833369,-2641.6362322,9.412e-05,2]
[420951124,1776787833379,-166.66,9.519e-05,2]
[420951125,1776787833389,-500.97543413,9.533e-05,2]
[420951126,1776787833399,-500.0,9.533e-05,2]
[420951127,1776787833408,-500.0,9.533e-05,2]
[420951128,1776787833418,-606.4473692,9.649e-05,2]
[420951129,1776787833427,-589.4287155,9.649e-05,2]
[420951130,1776787833438,-1117.0,9.657e-05,2]
[420951131,1776787833447,-250.0,9.801e-05,2]
[420951132,1776787833457,-166.66,9.833e-05,2]
[420951133,1776787833467,-252.22311075,9.833e-05,2]
[420951134,1776787833477,-260.0,9.863e-05,2]
[420951135,1776787833488,-150.0,9.888e-05,2]
[420951136,1776787833498,-150.0,9.888e-05,2]
[420951137,1776787833508,-150.0,9.888e-05,2]
[420951138,1776787833519,-150.0,9.888e-05,2]
[420951139,1776787833529,-150.0,9.888e-05,2]
[420951140,1776787833540,-150.0,9.888e-05,2]
[420951141,1776787833550,-150.0,9.888e-05,2]
[420951142,1776787833560,-150.0,9.888e-05,2]
[420951143,1776787833569,-150.0,9.888e-05,2]
[420951144,1776787833579,-150.0,9.888e-05,2]
[420951145,1776787833589,-150.0,9.888e-05,2]
[420951146,1776787833598,-166.05983851,9.888e-05,2]
[420951147,1776787833611,-150.0,9.888e-05,2]
[420951148,1776787833620,-150.0,9.888e-05,2]
[420951149,1776787833630,-150.0,9.917e-05,2]
[420951150,1776787833640,-150.0,9.918e-05,2]
[420951151,1776787833649,-150.0,9.93e-05,2]
[420951152,1776787833659,-150.0,9.938e-05,2]
[420951153,1776787833668,-150.0,9.947e-05,2]
[420951154,1776787833678,-150.0,9.949e-05,2]
[420951155,1776787833689,-150.0,9.952e-05,2]
[420951156,1776787833699,-150.0,9.972e-05,2]
[420951157,1776787833708,-433.0,9.975e-05,2]
[420951158,1776787833718,-150.0,9.977e-05,2]
[420951159,1776787833728,-150.0,9.979e-05,2]
[420951160,1776787833739,-150.0,9.988e-05,2]
[420951161,1776787833748,-150.0,9.988e-05,2]
[420951162,1776787833758,-9788.050274,9.996e-05,2]
[420951163,1776787833768,-4246.700021,9.996e-05,2]
[420951164,1776787833778,-165.7729316,0.0001,8]
[420951165,1776787833788,-21874.14168875,0.0001,2]
[420951166,1776787833798,-371.32580734,0.0001,2]
[420951167,1776787833808,-151.0,0.0001,2]
[420951168,1776787833818,-1272.07832236,0.0001,2]
[420951169,1776787833828,-200.0,0.0001,2]
[420951170,1776787833837,-189.78674529,0.0001,2]
[420951171,1776787833846,-151.0,0.0001,2]
[420951172,1776787833856,-151.0,0.0001,2]
[420951173,1776787833866,-151.0,0.0001,2]
[420951174,1776787833876,-151.0,0.0001,2]
[420951175,1776787833885,-151.0,0.0001,2]
[420951176,1776787833895,-151.0,0.0001,2]
[420951177,1776787833905,-151.0,0.0001,2]
[420951178,1776787833915,-151.0,0.0001,2]
[420951179,1776787833924,-151.0,0.0001,2]
[420951180,1776787833934,-151.0,0.0001,2]
[420951181,1776787833944,-151.0,0.0001,2]
[420951182,1776787833954,-500.0,0.0001,2]
[420951183,1776787833963,-500.0,0.0001,2]
[420951184,1776787833973,-500.0,0.0001,2]
[420951185,1776787833983,-500.0,0.0001,2]
[420951186,1776787833993,-324.58914921,0.0001,2]
[420951187,1776787834003,-151.0,0.0001,2]
[420951188,1776787834013,-154.96599412,0.0001,2]
[420951189,1776787834023,-1386.78395259,0.0001,2]
[420951190,1776787834034,-9250.0,0.0001,2]
[420951191,1776787834044,-150.0,0.00010006,2]
[420951192,1776787834055,-150.0,0.0001001,2]
[420951193,1776787834073,-150.0,0.00010017,2]
[420951194,1776787834085,-1299.59,0.00010025,2]
[420951195,1776787834096,-150.0,0.00010025,2]
[420951196,1776787834106,-150.0,0.00010036,2]
[420951197,1776787834115,-150.0,0.00010037,2]
[420951198,1776787834126,-150.0,0.0001004,2]
[420951199,1776787834136,-150.0,0.00010057,2]
[420951200,1776787834146,-150.0,0.00010066,2]
[420951201,1776787834156,-150.0,0.00010071,2]
[420951202,1776787834166,-150.0,0.00010071,2]
[420951203,1776787834176,-637.99582549,0.00010081,2]
[420951204,1776787834186,-500.62439048,0.00010081,2]
[420951205,1776787834197,-150.0,0.00010082,2]
[420951206,1776787834207,-150.0,0.00010087,2]
[420951207,1776787834217,-150.0,0.00010087,2]
[420951208,1776787834227,-150.0,0.00010096,2]
[420951209,1776787834237,-150.0,0.00010099,2]
[420951210,1776787834247,-150.0,0.00010101,2]
[420951211,1776787834257,-150.0,0.00010125,2]
[420951212,1776787834268,-150.0,0.00010132,2]
[420951213,1776787834278,-150.0,0.00010137,2]
[420951214,1776787834287,-150.0,0.00010141,2]
[420951215,1776787834298,-150.0,0.00010146,2]
[420951216,1776787834308,-166.66,0.00010147,2]
[420951217,1776787834318,-150.0,0.00010155,2]
[420951218,1776787834329,-150.0,0.00010162,2]
[420951219,1776787834339,-150.0,0.00010162,2]
[420951220,1776787834349,-1117.0,0.00010165,2]
[420951221,1776787834360,-150.0,0.00010183,2]
[420951222,1776787834370,-150.0,0.00010185,2]
[420951223,1776787834380,-150.0,0.00010187,2]
[420951224,1776787834390,-150.0,0.00010187,2]
[420951225,1776787834400,-150.0,0.00010193,2]
[420951226,1776787834410,-5530.0,0.000102,3]
[420951227,1776787834420,-1232.66260711,0.00010204,2]
[420951228,1776787834430,-150.0,0.00010211,2]
[420951229,1776787834440,-150.0,0.00010214,2]
[420951230,1776787834450,-150.0,0.00010223,2]
[420951231,1776787834460,-150.0,0.00010226,2]
[420951232,1776787834470,-150.0,0.00010237,2]
[420951233,1776787834480,-150.0,0.00010244,2]
[420951234,1776787834490,-150.0,0.00010254,2]
[420951235,1776787834501,-150.0,0.00010254,2]
[420951236,1776787834511,-150.0,0.00010254,2]
[420951237,1776787834525,-500.0,0.00010266,2]
[420951238,1776787834535,-500.0,0.00010266,2]
[420951239,1776787834545,-150.0,0.00010268,2]
[420951240,1776787834555,-150.0,0.00010274,2]
[420951241,1776787834565,-150.0,0.00010275,2]
[420951242,1776787834576,-150.0,0.00010284,2]
[420951243,1776787834585,-150.0,0.00010287,2]
[420951244,1776787834595,-150.0,0.00010287,2]
[420951245,1776787834605,-150.0,0.000103,2]
[420951246,1776787834615,-150.0,0.00010303,2]
[420951247,1776787834626,-150.0,0.0001031,2]
[420951248,1776787834636,-150.0,0.00010315,2]
[420951249,1776787834646,-150.0,0.00010333,2]
[420951250,1776787834657,-150.0,0.00010337,2]
[420951251,1776787834667,-150.0,0.0001034,2]
[420951252,1776787834678,-150.0,0.00010345,2]
[420951253,1776787834687,-150.0,0.00010352,2]
[420951254,1776787834703,-150.0,0.00010363,2]
[420951255,1776787834713,-150.0,0.00010376,2]
[420951256,1776787834723,-150.0,0.00010387,2]
[420951257,1776787834733,-150.0,0.00010387,2]
[420951258,1776787834743,-150.0,0.00010392,2]
[420951259,1776787834754,-150.0,0.00010395,2]
[420951260,1776787834765,-1300.0,0.000104,3]
[420951261,1776787834775,-578.20924308,0.000104,2]
[420951262,1776787834785,-500.0,0.000104,2]
[420951263,1776787834795,-721.12765535,0.000104,2]
[420951264,1776787834805,-200.0,0.000104,2]
[420951265,1776787834815,-151.0,0.000104,2]
[420951266,1776787834826,-330.58746423,0.000104,2]
[420951267,1776787834836,-1428.38747117,0.000104,2]
[420951268,1776787834846,-2000.0,0.000104,2]
[420951269,1776787834856,-2000.0,0.000104,2]
[420951270,1776787834867,-2000.0,0.000104,2]
[420951271,1776787834876,-2000.0,0.000104,2]
[420951272,1776787834887,-2000.0,0.000104,2]
[420951273,1776787834896,-174.61919141,0.000104,2]
[420951274,1776787834906,-2000.0,0.000104,2]
[420951275,1776787834916,-2000.0,0.000104,2]
[420951276,1776787834926,-2000.0,0.000104,2]
[420951277,1776787834936,-1500.0,0.000104,2]
[420951278,1776787834946,-235.75327194,0.000104,2]
[420951279,1776787834956,-244.476143,0.000104,2]
[420951280,1776787834966,-372.09560581,0.000104,2]
[420951281,1776787834976,-150.0,0.00010405,2]
[420951282,1776787834987,-150.0,0.00010406,2]
[420951283,1776787834996,-209.03489163,0.00010411,2]
[420951284,1776787835007,-500.0,0.00010411,2]
[420951285,1776787835017,-500.0,0.00010411,2]
[420951286,1776787835027,-232.26937202,0.00010411,2]
[420951287,1776787835037,-548.0,0.00010411,2]
[420951288,1776787835046,-548.0,0.00010411,2]
[420951289,1776787835056,-548.0,0.00010411,2]
[420951290,1776787835066,-548.0,0.00010411,2]
[420951291,1776787835076,-548.0,0.00010411,2]
[420951292,1776787835086,-548.0,0.00010411,2]
[420951293,1776787835095,-548.0,0.00010411,2]
[420951294,1776787835105,-548.0,0.00010411,2]
[420951295,1776787835115,-548.0,0.00010411,2]
[420951296,1776787835125,-548.0,0.00010411,2]
[420951297,1776787835135,-548.0,0.00010411,2]
[420951298,1776787835144,-548.0,0.00010411,2]
[420951299,1776787835154,-548.0,0.00010411,2]
[420951300,1776787835164,-548.0,0.00010411,2]
[420951301,1776787835174,-548.0,0.00010411,2]
[420951302,1776787835184,-548.0,0.00010411,2]
[420951303,1776787835194,-548.0,0.00010411,2]
[420951304,1776787835203,-548.0,0.00010411,2]
[420951305,1776787835214,-548.0,0.00010411,2]
[420951306,1776787835223,-548.0,0.00010411,2]
[420951307,1776787835233,-548.0,0.00010411,2]
[420951308,1776787835243,-548.0,0.00010411,2]
[420951309,1776787835252,-548.0,0.00010411,2]
[420951310,1776787835263,-548.41903347,0.00010411,2]
[420951311,1776787835273,-150.0,0.00010422,2]
[420951312,1776787835283,-150.0,0.00010437,2]
[420951313,1776787835293,-150.0,0.00010437,2]
[420951314,1776787835302,-150.0,0.00010437,2]
[420951315,1776787835316,-150.0,0.00010437,2]
[420951316,1776787835326,-150.0,0.00010437,2]
[420951317,1776787835335,-150.0,0.00010437,2]
[420951318,1776787835345,-389.44,0.00010444,2]
[420951319,1776787835355,-150.0,0.00010452,2]
[420951320,1776787835365,-153.0,0.00010453,3]
[420951321,1776787835375,-500.0,0.00010455,2]
[420951322,1776787835386,-151.0,0.00010455,2]
[420951323,1776787835396,-166.66,0.00010461,2]
[420951324,1776787835406,-150.0,0.00010468,2]
[420951325,1776787835416,-150.0,0.00010469,2]
[420951326,1776787835426,-150.0,0.00010479,2]
[420951327,1776787835436,-150.0,0.00010482,2]
[420951328,1776787835445,-150.0,0.00010487,2]
[420951329,1776787835455,-150.0,0.00010487,2]
[420951330,1776787835465,-151.0,0.00010496,2]
[420951331,1776787835476,-150.0,0.00010498,2]
[420951332,1776787835486,-2600.0,0.000105,3]
[420951333,1776787835497,-5530.0,0.000105,5]
[420951334,1776787835507,-500.0,0.0001051,2]
[420951335,1776787835517,-151.0,0.0001051,2]
[420951336,1776787835527,-150.0,0.00010511,2]
[420951337,1776787835537,-150.0,0.00010521,2]
[420951338,1776787835547,-150.0,0.00010529,2]
[420951339,1776787835557,-150.0,0.00010534,2]
[420951340,1776787835567,-150.0,0.00010537,2]
[420951341,1776787835577,-150.0,0.00010541,2]
[420951342,1776787835587,-259.61,0.00010543,2]
[420951343,1776787835597,-1438.09495884,0.00010548,2]
[420951344,1776787835607,-350.0,0.00010551,2]
[420951345,1776787835618,-150.0,0.00010559,2]
[420951346,1776787835628,-150.0,0.00010564,2]
[420951347,1776787835638,-500.0,0.00010565,2]
[420951348,1776787835647,-151.0,0.00010565,2]
[420951349,1776787835657,-150.0,0.00010571,2]
[420951350,1776787835667,-150.0,0.00010574,2]
[420951351,1776787835678,-150.0,0.00010587,2]
[420951352,1776787835689,-150.0,0.00010587,2]
[420951353,1776787835699,-150.0,0.0001059,2]
[420951354,1776787835711,-150.0,0.00010599,2]
[420951355,1776787835721,-3900.0,0.000106,3]
[420951356,1776787835732,-150.0,0.000106,2]
[420951357,1776787835743,-150.0,0.00010606,2]
[420951358,1776787835754,-500.0,0.0001062,2]
[420951359,1776787835768,-151.0,0.0001062,2]
[420951360,1776787835778,-150.0,0.0001062,2]
[420951361,1776787835789,-150.0,0.0001062,2]
[420951362,1776787835800,-150.0,0.0001062,2]
[420951363,1776787835810,-350.0,0.00010628,2]
[420951364,1776787835820,-150.0,0.0001063,2]
[420951365,1776787835831,-150.0,0.00010637,2]
[420951366,1776787835841,-3599.136,0.00010642,2]
[420951367,1776787835852,-2474.0,0.00010642,2]
[420951368,1776787835862,-150.0,0.00010648,2]
[420951369,1776787836479,-150.0,0.00010651,2]
[420951370,1776787836491,-150.0,0.0001066,2]
[420951371,1776787836500,-150.0,0.00010663,2]
[420951372,1776787836510,-500.0,0.00010675,2]
[420951373,1776787836520,-151.0,0.00010675,2]
[420951374,1776787836530,-150.0,0.00010681,2]
[420951375,1776787836540,-389.44,0.00010685,2]
[420951376,1776787836550,-150.0,0.00010687,2]
[420951377,1776787836559,-150.0,0.00010687,2]
[420951378,1776787836569,-350.0,0.00010689,2]
[420951379,1776787836579,-150.0,0.00010689,2]
[420951380,1776787836588,-73653.8836717,0.0001069,3]
[420951381,1776787836598,-150.0,0.00010691,2]
[420951382,1776787836608,-202.43,0.00010692,2]
[420951383,1776787836618,-111287.12486772,0.000107,2]
[420951384,1776787836627,-5200.0,0.000107,3]
[420951385,1776787836636,-667.711287,0.000107,2]
[420951386,1776787836646,-667.711287,0.000107,2]
[420951387,1776787836656,-667.711287,0.000107,2]
[420951388,1776787836665,-667.711287,0.000107,2]
[420951389,1776787836674,-151.0,0.000107,2]
[420951390,1776787836684,-163.067398,0.000107,2]
[420951391,1776787836694,-163.067398,0.000107,2]
[420951392,1776787836704,-163.067398,0.000107,2]
[420951393,1776787836714,-163.067398,0.000107,2]
[420951394,1776787836724,-8440.4084442,0.000107,2]
[420951395,1776787836733,-1117.0,0.000107,2]
[420951396,1776787836743,-326.935,0.00010701,2]
[420951397,1776787836752,-4376.963,0.00010701,2]
[420951398,1776787836762,-5000.0,0.00010707,2]
[420951399,1776787836773,-150.0,0.00010712,2]
[420951400,1776787836783,-150.0,0.00010712,2]
[420951401,1776787836793,-150.0,0.00010719,2]
[420951402,1776787836803,-150.0,0.00010728,2]
[420951403,1776787836813,-500.0,0.0001073,2]
[420951404,1776787836823,-151.0,0.0001073,2]
[420951405,1776787836833,-150.0,0.00010733,2]
[420951406,1776787836843,-150.0,0.00010737,2]
[420951407,1776787836852,-150.0,0.00010742,2]
[420951408,1776787836863,-150.0,0.00010749,2]
[420951409,1776787836872,-350.0,0.00010767,2]
[420951410,1776787836882,-150.0,0.00010773,2]
[420951411,1776787836892,-150.0,0.00010775,2]
[420951412,1776787836901,-166.66,0.00010776,2]
[420951413,1776787836911,-150.0,0.00010778,2]
[420951414,1776787836921,-1432.01373195,0.0001078,2]
[420951415,1776787836930,-500.0,0.00010785,2]
[420951416,1776787836940,-151.0,0.00010785,2]
[420951417,1776787836949,-151.76,0.00010786,2]
[420951418,1776787836959,-150.0,0.00010787,2]